{"text_format":"2","workbook":"xlsx","n_sheets":1,"sheets":["COTAÇÃO GERAL"],"not_rendered":{"charts":0,"images":1,"macros":0,"external_links":0,"defined_names":1,"comments":0,"pivot_tables":0},"unopened":[],"bounds":{"document_bytes":16777216,"sheet_cells":100000,"run_cost":"one","rows_first":2000,"rows_last":500,"rows_between":2000,"halvings":0,"cell_chars":16384,"cell_head_chars":4096},"cells_cut":0,"cells_raw":0,"read":"whole","date_system":"1900"}

{"sheet":"COTAÇÃO GERAL","index":0,"n_rows":42,"n_cols":10,"rows_kept":42,"cut":false,"hidden":false,"merged":[[5,1,5,9],[6,1,6,9],[41,1,41,8]]}
[null,null,"                                    MINISTÉRIO DA INTEGRAÇÃO E DO DESENVOLVIMENTO REGIONAL (MIDR)"]
[null,null,"                                    COMPANHIA DO DESENVOLVIMENTO DOS VALES DO SÃO FRANCISCO E DO PARNAÍBA"]
[null,null,"                                    ÁREA DE IRRIGAÇÃO E OPERAÇÕES (AI)"]
[]
[]
[null,"PLANILHA ORÇAMENTÁRIA - GERAL"]
[null,"MUDAS PARA A ÁREA DE ATUAÇÃO DA CODEVASF"]
[]
[null,"ITEM","CULTURA","CULTIVAR","ESPECIFICAÇÕES TÉCNICAS","UNIDADE","QUANTIDADE","PREÇO UNITÁRIO","CRITÉRIO DE CONSOLIDAÇÃO DO PREÇO UNITÁRIO","PREÇO TOTAL"]
[null,1,"Abacate (Persea americana Mill.)","Geada com porta-enxerto Comum","Muda  certificada de Abacate cultivar Geada com porta-enxerto Comum; com enxerto feito entre 5 a 10cm de altura, medidos a partir do colo da planta; apresentar diâmetro do enxerto o mínimo de 1cm, não apresentando diferença de mais de 0,5cm entre os diâmetros do enxerto e do porta-enxerto, medidos a 5cm do ponto de enxertia; com comprimento, a partir do colo, entre 30 e 50 cm; deverá ter haste única, ereta e perfeita; isenta de pragas e doenças; a idade não deverá ultrapassar 12 meses, contados a partir da semeadura do porta-enxerto; sistema radicular bem desenvolvido, sem raízes enoveladas, retorcidas ou quebradas; acondicionada em recipiente próprio para mudas com, no mínimo, 15cm de diâmetro e 30cm de altura; sem sintomas de estresse hídrico e nutricional; e com identificador unitário.","unidade",3067,29,"Mediana;\nCV > 25%.",{"$f":"G10*H10","v":88943}]
[null,2,"Abacate (Persea americana Mill.)","Fortuna com porta-enxerto Comum","Muda  certificada de Abacate cultivar Fortuna com porta-enxerto Comum; com enxerto feito entre 5 a 10cm de altura, medidos a partir do colo da planta; apresentar diâmetro do enxerto o mínimo de 1cm, não apresentando diferença de mais de 0,5cm entre os diâmetros do enxerto e do porta-enxerto, medidos a 5cm do ponto de enxertia; com comprimento, a partir do colo, entre 30 e 50 cm; deverá ter haste única, ereta e perfeita; isenta de pragas e doenças; a idade não deverá ultrapassar 12 meses, contados a partir da semeadura do porta-enxerto; sistema radicular bem desenvolvido, sem raízes enoveladas, retorcidas ou quebradas; acondicionada em recipiente próprio para mudas com, no mínimo, 15cm de diâmetro e 30cm de altura; sem sintomas de estresse hídrico e nutricional; e com identificador unitário.","unidade",3067,29,"Mediana;\nCV > 25%.",{"$f":"G11*H11","v":88943}]
[null,3,"Abacate (Persea americana Mill.)","Margarida com porta-enxerto Comum","Muda  certificada de Abacate cultivar Margarida com porta-enxerto Comum; com enxerto feito entre 5 a 10cm de altura, medidos a partir do colo da planta; apresentar diâmetro do enxerto o mínimo de 1cm, não apresentando diferença de mais de 0,5cm entre os diâmetros do enxerto e do porta-enxerto, medidos a 5cm do ponto de enxertia; com comprimento, a partir do colo, entre 30 e 50 cm; deverá ter haste única, ereta e perfeita; isenta de pragas e doenças; a idade não deverá ultrapassar 12 meses, contados a partir da semeadura do porta-enxerto; sistema radicular bem desenvolvido, sem raízes enoveladas, retorcidas ou quebradas; acondicionada em recipiente próprio para mudas com, no mínimo, 15cm de diâmetro e 30cm de altura; sem sintomas de estresse hídrico e nutricional; e com identificador unitário.","unidade",9200,40,"Mediana;\nCV < 25%.",368000]
[null,4,"Abacaxi (Ananas comosus L.)","Pérola","Muda certificada de abacaxi, cultivar Pérola; produzida a partir de propagação in vitro ou secção do caule. Se, oriunda de propagação in vitro: deverá ser submetida à aclimatização; ter, na ocasião da comercialização, no mínimo 25cm de comprimento e 100g de peso; o material de propagação utilizado na propagação in vitro deverá ser retirado de gema apical ou lateral; e o número de subcultivos não poderá ser superior a 5. Se, oriunda de secção do caule, na ocasião da comercialização, deverão apresentar comprimento mínimo de 25cm; peso mínimo de 150g; idade máxima de 12  meses, contada a partir do plantio das secções do caule; e raízes eliminadas. Não deve apresentar sintomas de estresse hídrico e nutricional; isentas de pragas e doenças; e com identificador unitário.","unidade",248967,4.4400000000000004,"-",1105413.48]
[null,5,"Açaí (Euterpe oleracea Mart.)","BRS Pai Dégua","Muda certificada de Açaí cultivar BRS Pai Dégua; apresentando 5 folhas completamente expandidas; com altura total entre 50cm e 75cm, medidos da superfície do substrato à ponta da 5ª folha; apresentar diâmetro do caule superior a 14mm, medidos a 1cm da superfície do substrato; a idade não deverá ultrapassar 18 meses, a partir da repicagem da semente pré-germinada; sistema radicular bem desenvolvido, sem raízes enoveladas, retorcidas ou quebradas; acondicionada em recipiente próprio para mudas com, no mínimo, 11cm de diâmetro e 25cm de altura; isenta de pragas e doenças; sem sintomas de estresse hídrico e nutricional; e com identificador unitário.","unidade",33334,10,"Mediana;\nCV > 25%.",333340]
[null,6,"Acerola (Malpighia emarginata DC.)","Sertaneja BRS 152","Muda certificada de Acerola cultivar Sertaneja BRS 152; produzida por estaquia; com comprimento, a partir do colo, entre 50 e 70 cm; ter haste única, ereta e perfeita; isenta de pragas e doenças; a idade não deverá ultrapassar 12 meses, a partir da estaquia; sistema radicular bem desenvolvido, sem raízes enoveladas, retorcidas ou quebradas; acondicionada em recipiente próprio para mudas com, no mínimo, 6,5cm de diâmetro e 25cm de altura; sem sintomas de estresse hídrico e nutricional; e com identificador unitário.","unidade",186223,30,"Mediana;\nMenor Preço",5586690]
[null,7,"Banana (Musa spp.)","BRS Pacoua","Muda certificada de Banana cultivar BRS Pacoua; produzida a partir de propagação in vitro; aclimatizada; diâmetro do pseudocaule com o mínimo de 1cm, medido a 5 cm a partir do coleto da planta; três folhas expandidas, no mínimo; presença de raízes ativas, com cor variando de branca a creme claro; comprimento de, no mínimo, 30cm; acondicionada em recipiente próprio para mudas com, no mínimo, 15cm de diâmetro e 25cm de altura; isenta de pragas e doenças; sem sintomas de estresse hídrico e nutricional; e com identificador unitário.","unidade",4112,7,"-",{"$f":"G16*H16","v":28784}]
[null,8,"Banana (Musa spp.)","BRS Terra Anã","Muda certificada de Banana cultivar BRS Terra Anã; produzida a partir de propagação in vitro; aclimatizada; diâmetro do pseudocaule com o mínimo de 1cm, medido a 5 cm a partir do coleto da planta; três folhas expandidas, no mínimo; presença de raízes ativas, com cor variando de branca a creme claro; comprimento de, no mínimo, 30cm; acondicionada em recipiente próprio para mudas com, no mínimo, 15cm de diâmetro e 25cm de altura; isenta de pragas e doenças; sem sintomas de estresse hídrico e nutricional; e com identificador unitário.","unidade",9663,11.17,"Mediana;\nCV > 25%.",107935.71]
[null,9,"Banana (Musa spp.)","Nanicão - IAC 2001","Muda certificada de Banana cultivar Nanicão-IAC 2001; produzida a partir de propagação in vitro; aclimatizada; diâmetro do pseudocaule com o mínimo de 1cm, medido a 5 cm a partir do coleto da planta; três folhas expandidas, no mínimo; presença de raízes ativas, com cor variando de branca a creme claro; comprimento de, no mínimo, 30cm; acondicionada em recipiente próprio para mudas com, no mínimo, 15cm de diâmetro e 25cm de altura; isenta de pragas e doenças; sem sintomas de estresse hídrico e nutricional; e com identificador unitário.","unidade",132984,10.8,"-",{"$f":"G18*H18","v":1436227.2000000002}]
[null,10,"Banana (Musa spp.)","SCS451 Catarina (Prata Anã)","Muda certificada de Banana cultivar SCS451 Catarina (Prata Anã); produzida a partir de propagação in vitro; aclimatizada; diâmetro do pseudocaule com o mínimo de 1cm, medido a 5 cm a partir do coleto da planta; três folhas expandidas, no mínimo; presença de raízes ativas, com cor variando de branca a creme claro; comprimento de, no mínimo, 30cm; acondicionada em recipiente próprio para mudas com, no mínimo, 15cm de diâmetro e 25cm de altura; isenta de pragas e doenças; sem sintomas de estresse hídrico e nutricional; e com identificador unitário.","unidade",195981,7.31,"Media;\n",{"$f":"G19*H19","v":1432621.1099999999}]
[null,11,"Cacau (Theobroma cacao L.)","CEPEC2176 com porta-enxerto  CEPEC 2002","Muda  certificada de Cacau cultivar CEPEC2176 com porta-enxerto  CEPEC 2002; com enxerto feito acima de 15cm de altura, medidos a partir do colo da planta; apresentar 6 folhas totalmente expandidas; com comprimento, a partir do colo do porta-enxerto até a ponta da 6ª folha, entre 30 e 60 cm; deverá ter haste única, ereta e perfeita; isenta de pragas e doenças; a idade não deverá ultrapassar 18 meses, contados a partir da semeadura do porta-enxerto; sistema radicular bem desenvolvido, sem raízes enoveladas, retorcidas ou quebradas; acondicionada em recipiente próprio para mudas com, no mínimo, 15cm de diâmetro e 30cm de altura; sem sintomas de estresse hídrico e nutricional; e com identificador unitário.","unidade",172044,38.5,"Mediana;\nCV > 25%.",{"$f":"G20*H20","v":6623694}]
[null,12,"Cacau (Theobroma cacao L.)","CEPEC2204 com porta-enxerto  CEPEC 2002","Muda  certificada de Cacau cultivar CEPEC2204 com porta-enxerto  CEPEC 2002; com enxerto feito acima de 15cm de altura, medidos a partir do colo da planta; apresentar 6 folhas totalmente expandidas; com comprimento, a partir do colo do porta-enxerto até a ponta da 6ª folha, entre 30 e 60 cm; deverá ter haste única, ereta e perfeita; isenta de pragas e doenças; a idade não deverá ultrapassar 18 meses, contados a partir da semeadura do porta-enxerto; sistema radicular bem desenvolvido, sem raízes enoveladas, retorcidas ou quebradas; acondicionada em recipiente próprio para mudas com, no mínimo, 15cm de diâmetro e 30cm de altura; sem sintomas de estresse hídrico e nutricional; e com identificador unitário.","unidade",182044,38.5,"Mediana;\nCV > 25%.",7008694]
[null,13,"Café (Coffea arabica)","Arara ou Catuaí amarelo ou Catuaí vermelho ou Paraíso","Muda  certificada de Café cultivar Arara ou Catuaí amarelo ou Catuaí vermelho ou Paraíso; oriunda de estacas (haste vegetativa - ramo ortotrópico); com no mínimo três e no máximo nove pares de folhas definitivas;  medindo entre 15 a 30 cm de altura a partir da região de inserção; isenta de pragas e doenças; a idade não deverá ultrapassar 8 meses, contados a partir da estaquia ; sistema radicular bem desenvolvido, sem raízes enoveladas, retorcidas ou quebradas; acondicionada em recipiente próprio para mudas com, no mínimo, 15cm de diâmetro e 30cm de altura; sem sintomas de estresse hídrico e nutricional; e com identificador unitário; Em conformidade com a IN nº 35/2012 do MAPA.","unidade",27778,18.72,"-",520004.16]
[null,14,"Figueira (Ficus carica L.)","Pingo de Mel","Muda  certificada de Figueira cultivar Pingo de Mel; oriunda de estaca enraiada; embalada individualmente, com altura entre 40 e 60 cm, medidos a partir do colo; deve estar acondicionada em recipiente próprio para mudas com dimensões mínimas de 15 cm de diâmetro e 25 cm de altura, e substrato não deverá conter solo; a idade não deverá ultrapassar 12 meses, contados a partir da estaquia; deve apresentar sistema radicular bem desenvolvido, sem raízes enoveladas, retorcidas ou quebradas; isenta de pragas e doenças; não deve apresentar sintomatologia de estresse hídrico, e com identificador unitário.","unidade",36212,30,"Mediana;\n",1086360]
[null,15,"Figueira (Ficus carica L.)","Roxo de Valinhos","Muda  certificada de Figueira cultivar Roxo de Valinhos; oriunda de estaca enraiada; embalada individualmente, com altura entre 40 e 60 cm, medidos a partir do colo; deve estar acondicionada em recipiente próprio para mudas com dimensões mínimas de 15 cm de diâmetro e 25 cm de altura, e substrato não deverá conter solo; a idade não deverá ultrapassar 12 meses, contados a partir da estaquia; deve apresentar sistema radicular bem desenvolvido, sem raízes enoveladas, retorcidas ou quebradas; isenta de pragas e doenças; não deve apresentar sintomatologia de estresse hídrico, e com identificador unitário.","unidade",36212,13.65,"Média;\nMenor Preço",494293.8]
[null,16,"Goiaba (Psidium guajava L.)","Cortibel RG com porta-enxerto BRS Guaraçá (Psidium guajava L. x Psidium guineense Sw.)","Muda  certificada de Goiaba cultivar Cortibel RG com porta-enxerto BRS Guaraçá (Psidium guajava L. x Psidium guineense Sw.); com enxerto feito entre 10 e 15cm de altura, medidos a partir do colo da planta; apresentar diâmetro do enxerto o mínimo de 1cm, não apresentando diferença de mais de 0,5cm entre os diâmetros do enxerto e do porta-enxerto, medidos a 5cm do ponto de enxertia; com comprimento, a partir do colo, entre 40 e 50 cm; ter haste única, ereta e perfeita; isenta de pragas e doenças; a idade não deverá ultrapassar 12 meses, contados a partir da semeadura do porta-enxerto; sistema radicular bem desenvolvido, sem raízes enoveladas, retorcidas ou quebradas; acondicionada em recipiente próprio para mudas com dimensões mínimas de 15cm de diâmetro e 25cm de altura; substrato não deverá conter solo; sem sintomas de estresse hídrico e nutricional; deverá ser comprovadamente isenta de nematóides do gênero Meloidogyne, mediante análise laboratorial; e com identificador unitário.","unidade",20334,20.329999999999998,"Mediana;\nMenor Preço",413390.22]
[null,17,"Goiaba (Psidium guajava L.)","Paluma com porta-enxerto BRS Guaraçá (Psidium guajava L. x Psidium guineense Sw.)","Muda  certificada de Goiaba cultivar Paluma com porta-enxerto BRS Guaraçá (Psidium guajava L. x Psidium guineense Sw.); com enxerto feito entre 10 e 15cm de altura, medidos a partir do colo da planta; apresentar diâmetro do enxerto o mínimo de 1cm, não apresentando diferença de mais de 0,5cm entre os diâmetros do enxerto e do porta-enxerto, medidos a 5cm do ponto de enxertia; com comprimento, a partir do colo, entre 40 e 50 cm; ter haste única, ereta e perfeita; isenta de pragas e doenças; a idade não deverá ultrapassar 12 meses, contados a partir da semeadura do porta-enxerto; sistema radicular bem desenvolvido, sem raízes enoveladas, retorcidas ou quebradas; acondicionada em recipiente próprio para mudas com dimensões mínimas de 15cm de diâmetro e 25cm de altura; substrato não deverá conter solo; sem sintomas de estresse hídrico e nutricional; deverá ser comprovadamente isenta de nematóides do gênero Meloidogyne, mediante análise laboratorial; e com identificador unitário.","unidade",132226,20.45,"Mediana;\nCV > 25%.",2704021.6999999997]
[null,18,"Graviola (Annona muricata L.)",null,"Muda oriunda de viveiro registrado no RENASEM de Graviola cultivar ; com comprimento, a partir do colo do porta-enxerto, entre 40 e 60 cm; com enxerto feito a 20cm de altura, medidos a partir do colo da planta; ter haste única, ereta e perfeita; isenta de pragas e doenças; a idade não deverá ultrapassar 12 meses, contados a partir da semeadura do porta-enxerto; com folhas bem nutridas e rustificadas; caule lenhoso com mínimo de 5 mm, medidos 5cm acima do enxerto; raízes  sistema radicular bem desenvolvido, bem agregado ao substrato; sem raízes enoveladas, retorcidas ou quebradas; acondicionada em recipiente próprio para mudas com dimensões mínimas de 22cm de diâmetro e 35cm de altura; sem sintomas de estresse hídrico e nutricional; e com identificador unitário.","unidade",12078,19.309999999999999,"Mediana;\nMenor Preço",233226.18]
[null,19,"Laranja  (Citrus sinensis (L.) Osbeck)","Pera IAC com porta-enxerto limoeiro ‘Cravo’ (Citrus limonia Osbeck)","Muda certificada de Laranja cultivar Pera IAC com porta-enxerto limoeiro ‘Cravo’ (Citrus limonia Osbeck); com enxerto feito entre 10 e 20cm de altura, medidos a partir do colo do porta-enxerto; o enxerto e o porta-enxerto deverão constituir haste única e ereta, tolerando-se uma pequena curvatura logo acima do ponto de enxertia de, no máximo, 15º, e apresentar diferença menor ou igual a 0,5cm entre seus diâmetros, medidos a 5cm acima e abaixo do ponto de enxertia; tecido amadurecido; ramos íntegros, sem danos físicos; com comprimento, a partir do colo, entre 50 e 60 cm;  diâmetro mínimo de 0,5 cm, 5 cm acima do ponto de enxertia; corte do porta-enxerto cicatrizado; estar isenta de pragas e doenças; a idade não deverá ultrapassar 18 meses, contados a partir da semeadura do porta-enxerto; sistema radicular bem desenvolvido, com raiz principal maior que 20cm, radicelas ocupando todo ou quase todo o volume do substrato, sem raízes enoveladas, retorcidas ou quebradas; acondicionada em recipiente próprio para mudas com dimensões mínimas de 10cm de diâmetro e 30cm de altura; substrato não deverá conter solo; sem sintomas de estresse hídrico e nutricional; e com identificador unitário.","unidade",72600,19.12,"Mediana;\nMenor Preço",1388112]
[null,20,"Lima ácida Tahiti (Citrus latifolia (Yu. Tanaka) Tanaka)","CPMF 01 ou CPMF 02 (Tahiti), com porta-enxerto Citrandarin ‘San Diego’ ou Citrandarin‘Riverside’","Muda certificada de Lima cultivar CPMF 01 ou CPMF 02 (Tahiti), com porta-enxerto Citrandarin ‘San Diego’ ou Citrandarin‘Riverside’; com enxerto feito entre 10 e 20cm de altura, medidos a partir do colo do porta-enxerto; o enxerto e o porta-enxerto deverão constituir haste única e ereta, tolerando-se uma pequena curvatura logo acima do ponto de enxertia de, no máximo, 15º, e apresentar diferença menor ou igual a 0,5cm entre seus diâmetros, medidos a 5cm acima e abaixo do ponto de enxertia; tecido amadurecido; ramos íntegros, sem danos físicos; com comprimento, a partir do colo, entre 50 e 60 cm;  diâmetro mínimo de 0,5 cm, 5 cm acima do ponto de enxertia; corte do porta-enxerto cicatrizado; estar isenta de pragas e doenças; a idade não deverá ultrapassar 24 meses, contados a partir da semeadura do porta-enxerto; sistema radicular bem desenvolvido, com raiz principal maior que 20cm, radicelas ocupando todo ou quase todo o volume do substrato, sem raízes enoveladas, retorcidas ou quebradas; acondicionada em recipiente próprio para mudas com dimensões mínimas de 10cm de diâmetro e 30cm de altura; substrato não deverá conter solo; sem sintomas de estresse hídrico e nutricional; e com identificador unitário.","unidade",177763.34,20,"Mediana;\nCV > 25%.",3555266.8]
[null,21,"Manga (Mangifera indica L.)","Palmer com porta-enxerto IAC 101 Coquinho","Muda  certificada de Manga cultivar Palmer com porta-enxerto IAC 101 Coquinho; com enxerto feito, no mínimo a 15cm de altura, medidos a partir do colo da planta;  não apresentar diferença de mais de 1cm entre os diâmetros do enxerto e do porta-enxerto, medidos a 5cm do ponto de enxertia; com comprimento, a partir do colo, entre 50 e 70 cm; ter haste única, ereta e perfeita; isenta de pragas e doenças; a idade não deverá ultrapassar 18 meses, contados a partir da semeadura do porta-enxerto; sistema radicular bem desenvolvido, sem raízes enoveladas, retorcidas ou quebradas; acondicionada em recipiente próprio para mudas com dimensões mínimas de 15cm de diâmetro e 30cm de altura; sem sintomas de estresse hídrico e nutricional; e com identificador unitário.","unidade",7778,12,"Mediana;\nCV > 25%.",{"$f":"G30*H30","v":93336}]
[null,22,"Manga (Mangifera indica L.)","Tommy Atkins com porta-enxerto IAC 101 Coquinho","Muda  certificada de Manga cultivar Tommy Atkins com porta-enxerto IAC 101 Coquinho; com enxerto feito, no mínimo a 15cm de altura, medidos a partir do colo da planta;  não apresentar diferença de mais de 1cm entre os diâmetros do enxerto e do porta-enxerto, medidos a 5cm do ponto de enxertia; com comprimento, a partir do colo, entre 50 e 70 cm; ter haste única, ereta e perfeita; isenta de pragas e doenças; a idade não deverá ultrapassar 18 meses, contados a partir da semeadura do porta-enxerto; sistema radicular bem desenvolvido, sem raízes enoveladas, retorcidas ou quebradas; acondicionada em recipiente próprio para mudas com dimensões mínimas de 15cm de diâmetro e 30cm de altura; sem sintomas de estresse hídrico e nutricional; e com identificador unitário.","unidade",39149,18.5,"Mediana;\nCV > 25%.",{"$f":"G31*H31","v":724256.5}]
[null,23,"Manga (Mangifera indica L.)","Rosa com porta-enxerto IAC 101 Coquinho","Muda  certificada de Manga cultivar Rosa com porta-enxerto IAC 101 Coquinho; com enxerto feito, no mínimo a 15cm de altura, medidos a partir do colo da planta;  não apresentar diferença de mais de 1cm entre os diâmetros do enxerto e do porta-enxerto, medidos a 5cm do ponto de enxertia; com comprimento, a partir do colo, entre 50 e 70 cm; ter haste única, ereta e perfeita; isenta de pragas e doenças; a idade não deverá ultrapassar 18 meses, contados a partir da semeadura do porta-enxerto; sistema radicular bem desenvolvido, sem raízes enoveladas, retorcidas ou quebradas; acondicionada em recipiente próprio para mudas com dimensões mínimas de 15cm de diâmetro e 30cm de altura; sem sintomas de estresse hídrico e nutricional; e com identificador unitário.","unidade",31371,45,"Média;\nMenor Preço",{"$f":"G32*H32","v":1411695}]
[null,24,"Manga (Mangifera indica L.)","Espada com porta-enxerto IAC 101 Coquinho","Muda  certificada de Manga cultivar Espada com porta-enxerto IAC 101 Coquinho; com enxerto feito, no mínimo a 15cm de altura, medidos a partir do colo da planta;  não apresentar diferença de mais de 1cm entre os diâmetros do enxerto e do porta-enxerto, medidos a 5cm do ponto de enxertia; com comprimento, a partir do colo, entre 50 e 70 cm; ter haste única, ereta e perfeita; isenta de pragas e doenças; a idade não deverá ultrapassar 18 meses, contados a partir da semeadura do porta-enxerto; sistema radicular bem desenvolvido, sem raízes enoveladas, retorcidas ou quebradas; acondicionada em recipiente próprio para mudas com dimensões mínimas de 15cm de diâmetro e 30cm de altura; sem sintomas de estresse hídrico e nutricional; e com identificador unitário.","unidade",31371,13.08,"Mediana;\nCV > 25%.",{"$f":"G33*H33","v":410332.68}]
[null,25,"Maracujá (Passiflora foetida L.)","UFERSA BRSRM 153","Muda certificada de Maracujá cultivar UFERSA BRSRM 153; oriunda da semeadura de sementes; com altura total entre 15cm e 30cm, medidos a partir do colo; a idade não deverá ultrapassar 70 dias, a partir da semeadura; sistema radicular bem desenvolvido, sem raízes enoveladas, retorcidas ou quebradas; acondicionada em recipiente próprio para mudas com, no mínimo, 10cm de diâmetro e 20cm de altura; substrato não deverá conter solo; isenta de pragas e doenças; sem sintomas de estresse hídrico e nutricional; e com identificador unitário.","unidade",33334,20,"Mediana;\nMenor Preço",{"$f":"G34*H34","v":666680}]
[null,26,"Maracujá (Passiflora spp.)","FB 200 e FB 300","Muda certificada de Maracujá cultivar FB 200 e FB 300; oriunda da semeadura de sementes; com altura total entre 15cm e 30cm, medidos a partir do colo; a idade não deverá ultrapassar 70 dias, a partir da semeadura; sistema radicular bem desenvolvido, sem raízes enoveladas, retorcidas ou quebradas; acondicionada em recipiente próprio para mudas com, no mínimo, 10cm de diâmetro e 20cm de altura; substrato não deverá conter solo; isenta de pragas e doenças; sem sintomas de estresse hídrico e nutricional; e com identificador unitário.","unidade",268646,6.19,"-",1662918.74]
[null,27,"Morango (Fragaria ananassa Duch.)","Camarosa ou BRS DC25 (Fênix)","Muda  certificada de Morango cultivar Camarosa ou BRS DC25 (Fênix), oriunda de plantas matrizes, produzidas por cultivo in vitro; com pelo menos três folhas expandidas, com altura mínima de 5 cm, medida a partir do ponto de inserção; estar isenta de pragas e doenças; apresentar sistema radicular isento de agentes parasitas e ervas daninhas; acondicionada em recipiente próprio para mudas, não devendo apresentar sintomas de estresse hídrico e nutricional;  e com identificador unitário; em conformidade com a IN nº 28/2022 do MAPA.","Cento",124445,7.41,"Média;\nMenor Preço",922137.45000000007]
[null,28,"Pinha (Annona squamosa L.)","Ata ou Pinha FAO I ou Pinha AP ou Pinha FAO II com porta-enxerto Comum","Muda oriunda de viveiro registrado no RENASEM de Pinha cultivar Ata ou Pinha FAO I ou Pinha AP ou Pinha FAO II com porta-enxerto Comum; com comprimento, a partir do colo do porta-enxerto, entre 40 e 60 cm; ter haste única, ereta e perfeita; isenta de pragas e doenças; a idade não deverá ultrapassar 12 meses, contados a partir da semeadura do porta-enxerto; com folhas bem nutridas e rustificadas; caule lenhoso com mínimo de 5 mm, medidos 5cm acima do enxerto; raízes  sistema radicular bem desenvolvido, bem agregado ao substrato; sem raízes enoveladas, retorcidas ou quebradas; acondicionada em recipiente próprio para mudas com dimensões mínimas de 15cm de diâmetro e 30cm de altura; sem sintomas de estresse hídrico e nutricional; e com identificador unitário.","unidade",93223,45.02,"Média;\nMenor Preço",4196899.46]
[null,29,"Pitanga (Eugenia uniflora L.)","\"Tropicana\" com porta-enxerto Comum","Muda oriunda de viveiro registrado no RENASEM de Pitanga cultivar \"Tropicana\" com porta-enxerto Comum; com comprimento, a partir do colo do porta-enxerto, entre 40 e 60 cm; ter haste única, ereta e perfeita; isenta de pragas e doenças; a idade não deverá ultrapassar 12 meses, contados a partir da semeadura do porta-enxerto; caule lenhoso com mínimo de 5 mm, medidos 5cm acima do enxerto; raízes  sistema radicular bem desenvolvido, bem agregado ao substrato; sem raízes enoveladas, retorcidas ou quebradas; acondicionada em recipiente próprio para mudas com dimensões mínimas de 8cm de diâmetro e 15cm de altura; sem sintomas de estresse hídrico e nutricional; e com identificador unitário.","unidade",13577,8.7100000000000009,"Mediana;\nMenor Preço",118255.67000000001]
[null,30,"Tangerina  (Citrus reticulata Blanco = Citrus tangerina Tanaka)","Tangerina Ponkan IAC, com porta-enxerto em Limão cravo (Citrus limonia Osbeck)","Muda certificada de Tangerina cultivar Tangerina Ponkan IAC, com porta-enxerto em Limão cravo (Citrus limonia Osbeck); com enxerto feito entre 10 e 20cm de altura, medidos a partir do colo do porta-enxerto; o enxerto e o porta-enxerto deverão constituir haste única e ereta, tolerando-se uma pequena curvatura logo acima do ponto de enxertia de, no máximo, 15º, e apresentar diferença menor ou igual a 1cm entre seus diâmetros, medidos a 5cm acima e abaixo do ponto de enxertia; tecido amadurecido; ramos íntegros, sem danos físicos; com comprimento, a partir do colo, entre 30 e 50 cm;  diâmetro mínimo de 0,5 cm, 5 cm acima do ponto de enxertia; corte do porta-enxerto cicatrizado; estar isenta de pragas e doenças; a idade não deverá ultrapassar 18 meses, contados a partir da semeadura do porta-enxerto; sistema radicular bem desenvolvido, com raiz principal maior que 20cm, radicelas ocupando todo ou quase todo o volume do substrato, sem raízes enoveladas, retorcidas ou quebradas; acondicionada em recipiente próprio para mudas com dimensões mínimas de 10cm de diâmetro e 30cm de altura; substrato não deverá conter solo; sem sintomas de estresse hídrico e nutricional; e com identificador unitário.","unidade",55955,16.489999999999998,"Medinaa;\n",922697.95]
[null,31,"Uva  (Vitis vinifera L.)","Malbech","Muda  certificada de Uva cultivar Malbech; apresentar o diâmetro de 0,8 a 2,0cm, a 5cm acima do ponto de enxertia; enxerto e porta-enxerto apresentando, a 5cm do ponto de enxertia, o mesmo diâmetro, tolerando-se uma variação máxima de 25% entre ambos; a soldadura da enxertia perfeitamente cicatrizada; com comprimento mínimo de 60 cm e pelo menos 3 gemas viáveis, a partir do ponto de enxertia; porta-enxerto com o comprimento total não inferior a 30cm, apresentando a partir do ponto de enxertia uma zona não-enraizada de no mínimo 15cm; ter haste única e lenho perfeitamente amadurecido; estar isenta de pragas e doenças; a idade não deverá ultrapassar 24 meses, a partir da data da enxertia; apresentar sistema radicular abundante e convenientemente aparado e ser devidamente protegidas com material não-fermentescível e úmido, isento de agentes parasitas e ervas daninhas, com embalagem externa de plástico perfurado ou aniagem;  e com identificador unitário.","unidade",394216,55.13,"-",21733128.080000002]
[null,32,"Uva  (Vitis vinifera L.)","Sauvignon Blanc","Muda  certificada de Uva cultivar Sauvignon Blanc; apresentar o diâmetro de 0,8 a 2,0cm, a 5cm acima do ponto de enxertia; enxerto e porta-enxerto apresentando, a 5cm do ponto de enxertia, o mesmo diâmetro, tolerando-se uma variação máxima de 25% entre ambos; a soldadura da enxertia perfeitamente cicatrizada; com comprimento mínimo de 60 cm e pelo menos 3 gemas viáveis, a partir do ponto de enxertia; porta-enxerto com o comprimento total não inferior a 30cm, apresentando a partir do ponto de enxertia uma zona não-enraizada de no mínimo 15cm; ter haste única e lenho perfeitamente amadurecido; estar isenta de pragas e doenças; a idade não deverá ultrapassar 24 meses, a partir da data da enxertia; apresentar sistema radicular abundante e convenientemente aparado e ser devidamente protegidas com material não-fermentescível e úmido, isento de agentes parasitas e ervas daninhas, com embalagem externa de plástico perfurado ou aniagem;  e com identificador unitário.","unidade",394216,50.13,"-",{"$f":"G41*H41","v":19762048.080000002}]
[null,"TOTAL",{"$nulls":7},{"$f":"SUM(J10:J41)","v":87228345.970000014}]